fUSD/lending_fUSD_20260611
["ID","MTS","AMOUNT","RATE_DAILY","PERIOD"]
[424746772,1781121052000,-293.0,0.0001929,2]
[424746764,1781121052000,-990.0,0.0001929,2]
[424746761,1781121052000,-309.0,0.0001929,2]
[424746763,1781121052000,-274.0,0.0001929,2]
[424746766,1781121052000,-309.0,0.0001929,2]
[424746765,1781121052000,-1333.0,0.0001929,2]
[424746767,1781121052000,-217.0,0.0001929,2]
[424746768,1781121052000,-869.0,0.0001929,2]
[424746769,1781121052000,-321.0,0.0001929,2]
[424746775,1781121052000,-284.95203121,0.000194,3]
[424746785,1781121052000,-209.40437684,0.00019486,2]
[424746786,1781121052000,-174.61919141,0.00019486,2]
[424746779,1781121052000,-151.0,0.00019486,2]
[424746776,1781121052000,-1140.0,0.00019452,2]
[424746781,1781121052000,-151.0,0.00019486,2]
[424746805,1781121052000,-151.0,0.00019486,2]
[424746830,1781121052000,-151.0,0.00019486,2]
[424746811,1781121052000,-151.0,0.00019486,2]
[424746842,1781121052000,-151.0,0.00019486,2]
[424746843,1781121052000,-2054.15682156,0.00019486,2]
[424746849,1781121052000,-152.0,0.00019486,2]
[424746846,1781121052000,-500.0,0.00019486,2]
[424746850,1781121052000,-500.0,0.00019486,2]
[424746845,1781121052000,-151.0,0.00019486,2]
[424746851,1781121052000,-151.0,0.00019486,2]
[424746854,1781121052000,-152.0,0.00019486,2]
[424746848,1781121052000,-151.0,0.00019486,2]
[424746847,1781121052000,-151.0,0.00019486,2]
[424746852,1781121052000,-151.0,0.00019486,2]
[424746844,1781121052000,-152.0,0.00019486,2]
[424746853,1781121052000,-151.0,0.00019486,2]
[424746859,1781121052000,-151.0,0.00019486,2]
[424746861,1781121052000,-500.0,0.00019486,2]
[424746856,1781121052000,-500.0,0.00019486,2]
[424746860,1781121052000,-152.0,0.00019486,2]
[424746862,1781121052000,-151.0,0.00019486,2]
[424746864,1781121052000,-152.0,0.00019486,2]
[424746866,1781121052000,-151.0,0.00019486,2]
[424746855,1781121052000,-151.0,0.00019486,2]
[424746858,1781121052000,-151.0,0.00019486,2]
[424746865,1781121052000,-500.0,0.00019486,2]
[424746857,1781121052000,-151.0,0.00019486,2]
[424746809,1781121052000,-1592.87721992,0.00019486,2]
[424746840,1781121052000,-151.0,0.00019486,2]
[424746841,1781121052000,-209.40437684,0.00019486,2]
[424746863,1781121052000,-151.0,0.00019486,2]
[424746834,1781121052000,-151.0,0.00019486,2]
[424746837,1781121052000,-1980.8648231,0.00019486,2]
[424746810,1781121052000,-151.0,0.00019486,2]
[424746813,1781121052000,-151.0,0.00019486,2]
[424746814,1781121052000,-1651.81367706,0.00019486,2]
[424746816,1781121052000,-151.0,0.00019486,2]
[424746812,1781121052000,-151.0,0.00019486,2]
[424746815,1781121052000,-151.0,0.00019486,2]
[424746818,1781121052000,-151.0,0.00019486,2]
[424746820,1781121052000,-209.40437684,0.00019486,2]
[424746819,1781121052000,-151.0,0.00019486,2]
[424746821,1781121052000,-151.0,0.00019486,2]
[424746824,1781121052000,-151.0,0.00019486,2]
[424746831,1781121052000,-1910.18787185,0.00019486,2]
[424746817,1781121052000,-1712.93078311,0.00019486,2]
[424746823,1781121052000,-151.0,0.00019486,2]
[424746827,1781121052000,-152.0,0.00019486,2]
[424746839,1781121052000,-500.0,0.00019486,2]
[424746838,1781121052000,-151.0,0.00019486,2]
[424746836,1781121052000,-151.0,0.00019486,2]
[424746832,1781121052000,-2080.17592889,0.00019486,2]
[424746833,1781121052000,-500.0,0.00019486,2]
[424746835,1781121052000,-152.0,0.00019486,2]
[424746825,1781121052000,-500.0,0.00019486,2]
[424746828,1781121052000,-151.0,0.00019486,2]
[424746829,1781121052000,-151.0,0.00019486,2]
[424746822,1781121052000,-1776.30922209,0.00019486,2]
[424746826,1781121052000,-1842.0326633,0.00019486,2]
[424746891,1781121053000,-773.24136889,0.00019651,2]
[424746889,1781121053000,-745.65223615,0.00019596,2]
[424746893,1781121053000,-801.85129954,0.00019706,2]
[424746894,1781121053000,-151.0,0.00019706,2]
[424746896,1781121053000,-151.0,0.00019761,2]
[424746892,1781121053000,-151.0,0.00019651,2]
[424746895,1781121053000,-831.51979762,0.00019761,2]
[424746897,1781121053000,-862.28603014,0.00019816,2]
[424746898,1781121053000,-151.0,0.00019816,2]
[424746907,1781121053000,-292.1,0.0002,2]
[424746899,1781121053000,-894.19061325,0.00019871,2]
[424746904,1781121053000,-961.58486558,0.00019981,2]
[424746901,1781121053000,-241.49,0.000199,2]
[424746906,1781121053000,-2000.0,0.00019994,7]
[424746903,1781121053000,-151.0,0.00019926,2]
[424746902,1781121053000,-927.27566594,0.00019926,2]
[424746888,1781121053000,-575.4,0.00019556,2]
[424746908,1781121053000,-1495.58100289,0.0002,5]
[424746900,1781121053000,-151.0,0.00019871,2]
[424746887,1781121053000,-151.0,0.00019541,2]
[424746876,1781121053000,-185.08,0.00019505,2]
[424746884,1781121053000,-185.09,0.00019508,2]
[424746905,1781121053000,-151.0,0.00019981,2]
[424746870,1781121053000,-500.0,0.00019486,2]
[424746867,1781121053000,-152.0,0.00019486,2]
[424746868,1781121053000,-500.0,0.00019486,2]
[424746869,1781121053000,-151.0,0.00019486,2]
[424746871,1781121053000,-151.0,0.00019486,2]
[424746873,1781121053000,-152.0,0.00019486,2]
[424746872,1781121053000,-152.0,0.00019486,2]
[424746875,1781121053000,-540.95866378,0.000195,2]
[424746874,1781121053000,-152.0,0.00019486,2]
[424746877,1781121053000,-185.08,0.00019505,2]
[424746878,1781121053000,-185.08,0.00019507,2]
[424746879,1781121053000,-185.08,0.00019507,2]
[424746881,1781121053000,-575.4,0.00019507,2]
[424746880,1781121053000,-185.08,0.00019507,2]
[424746883,1781121053000,-575.4,0.00019507,2]
[424746886,1781121053000,-719.04747942,0.00019541,2]
[424746882,1781121053000,-185.09,0.00019507,2]
[424746890,1781121053000,-151.0,0.00019596,2]
[424746885,1781121053000,-185.08,0.00019508,2]
[424746909,1781121053000,-2000.0,0.0002,2]
[424746912,1781121053000,-200.0,0.0002,10]
[424746946,1781121053000,-252.32,0.00020329,2]
[424746941,1781121053000,-293.0,0.0002029,2]
[424746940,1781121053000,-1025.0,0.0002029,2]
[424746936,1781121053000,-217.0,0.0002029,2]
[424746939,1781121053000,-266.0,0.0002029,2]
[424746937,1781121053000,-869.0,0.0002029,2]
[424746938,1781121053000,-321.0,0.0002029,2]
[424746943,1781121053000,-288.0,0.0002029,2]
[424746942,1781121053000,-515.0,0.0002029,2]
[424746934,1781121053000,-1333.0,0.0002029,2]
[424746945,1781121053000,-575.4,0.00020327,2]
[424746944,1781121053000,-575.4,0.00020327,2]
[424746950,1781121053000,-482.21,0.00020329,2]
[424746951,1781121053000,-575.4,0.00020329,2]
[424746949,1781121053000,-575.4,0.00020329,2]
[424746948,1781121053000,-575.4,0.00020329,2]
[424746953,1781121053000,-396.12,0.00020329,2]
[424746910,1781121053000,-652.2631735,0.0002,2]
[424746952,1781121053000,-575.4,0.00020329,2]
[424746947,1781121053000,-575.42,0.00020329,2]
[424746932,1781121053000,-274.0,0.0002029,2]
[424746935,1781121053000,-309.0,0.0002029,2]
[424746929,1781121053000,-157.3691467,0.000202,2]
[424746911,1781121053000,-400.0,0.0002,2]
[424746913,1781121053000,-851.0,0.0002,2]
[424746916,1781121053000,-1170.68,0.0002,2]
[424746914,1781121053000,-3053.0,0.0002,2]
[424746919,1781121053000,-181.08010149,0.00020034,2]
[424746933,1781121053000,-990.0,0.0002029,2]
[424746917,1781121053000,-155.0390625,0.00020034,2]
[424746918,1781121053000,-217.15233878,0.00020034,2]
[424746915,1781121053000,-152.86912565,0.0002,20]
[424746921,1781121053000,-151.0,0.00020034,2]
[424746920,1781121053000,-151.0,0.00020034,2]
[424746923,1781121053000,-272.09555376,0.00020034,2]
[424746927,1781121053000,-300.0,0.000201,10]
[424746926,1781121053000,-150.0,0.000201,2]
[424746924,1781121053000,-997.16350561,0.00020036,2]
[424746931,1781121053000,-319.0,0.0002029,2]
[424746922,1781121053000,-2157.14243826,0.00020034,2]
[424746930,1781121053000,-309.0,0.0002029,2]
[424746925,1781121053000,-151.0,0.00020036,2]
[424746928,1781121053000,-652.2631735,0.000202,2]
[424746981,1781121054000,-263.89,0.000209,2]
[424746989,1781121054000,-325.94899338,0.00021028,7]
[424746991,1781121054000,-2504.45,0.00021087,2]
[424746990,1781121054000,-500.0,0.00021028,7]
[424746987,1781121054000,-15000.0,0.00021,2]
[424746982,1781121054000,-297.3829339,0.000209,2]
[424746986,1781121054000,-6111.0,0.00021,2]
[424746984,1781121054000,-1000.0,0.00021,7]
[424746983,1781121054000,-331.49,0.00021,10]
[424746994,1781121054000,-2319.72410669,0.0002113,2]
[424746988,1781121054000,-6111.0,0.00021,2]
[424746992,1781121054000,-218.05361821,0.0002113,2]
[424747001,1781121054000,-575.4,0.00021151,2]
[424746995,1781121054000,-396.12,0.00021148,2]
[424746996,1781121054000,-482.21,0.00021148,2]
[424746997,1781121054000,-575.4,0.00021148,2]
[424746999,1781121054000,-482.21,0.00021148,2]
[424746998,1781121054000,-575.4,0.00021148,2]
[424747000,1781121054000,-575.42,0.0002115,2]
[424747006,1781121054000,-482.21,0.00021151,2]
[424747003,1781121054000,-575.4,0.00021151,2]
[424747004,1781121054000,-185.08,0.00021151,2]
[424747002,1781121054000,-185.08,0.00021151,2]
[424746985,1781121054000,-15000.0,0.00021,2]
[424746993,1781121054000,-194.72792766,0.0002113,2]
[424746980,1781121054000,-652.2631735,0.000208,2]
[424746959,1781121054000,-396.12,0.00020329,2]
[424746979,1781121054000,-500.0,0.00020767,2]
[424746963,1781121054000,-575.4,0.0002033,2]
[424746954,1781121054000,-644.04,0.00020329,2]
[424746956,1781121054000,-575.4,0.00020329,2]
[424746955,1781121054000,-185.08,0.00020329,2]
[424746958,1781121054000,-575.4,0.00020329,2]
[424746957,1781121054000,-575.4,0.00020329,2]
[424746960,1781121054000,-482.21,0.00020329,2]
[424746961,1781121054000,-396.12,0.00020329,2]
[424746962,1781121054000,-185.08,0.0002033,2]
[424746964,1781121054000,-644.05,0.0002033,2]
[424746965,1781121054000,-575.4,0.0002033,2]
[424746974,1781121054000,-225.18697532,0.00020582,2]
[424746966,1781121054000,-185.08,0.0002033,2]
[424746973,1781121054000,-150.0,0.000205,2]
[424746970,1781121054000,-575.4,0.0002033,2]
[424746967,1781121054000,-575.4,0.0002033,2]
[424746971,1781121054000,-416.8,0.00020381,2]
[424746972,1781121054000,-652.2631735,0.000204,2]
[424746968,1781121054000,-185.08,0.0002033,2]
[424746969,1781121054000,-575.4,0.0002033,2]
[424746975,1781121054000,-187.78006524,0.00020582,2]
[424746977,1781121054000,-2236.95670847,0.00020582,2]
[424746976,1781121054000,-250.12665989,0.00020582,2]
[424746978,1781121054000,-652.2631735,0.000206,2]
[424747005,1781121054000,-396.12,0.00021151,2]
[424747052,1781121054000,-644.04,0.00021972,2]
[424747007,1781121054000,-482.21,0.00021151,2]
[424747036,1781121054000,-350.01,0.00021534,3]
[424747035,1781121054000,-350.0,0.00021534,3]
[424747039,1781121054000,-1170.68,0.00021681,2]
[424747040,1781121054000,-207.0,0.000218,21]
[424747042,1781121054000,-5000.0,0.00021918,2]
[424747050,1781121054000,-396.13,0.00021972,2]
[424747048,1781121054000,-575.4,0.0002197,2]
[424747046,1781121054000,-396.12,0.0002197,2]
[424747043,1781121054000,-150.0,0.00021918,2]
[424747045,1781121054000,-396.12,0.0002197,2]
[424747044,1781121054000,-577.05,0.0002197,2]
[424747037,1781121054000,-201.93286098,0.00021678,2]
[424747049,1781121054000,-396.12,0.0002197,2]
[424747051,1781121054000,-397.39,0.00021972,2]
[424747053,1781121054000,-396.12,0.00021973,2]
[424747057,1781121054000,-575.36,0.00021973,2]
[424747059,1781121054000,-396.12,0.00021973,2]
[424747058,1781121054000,-482.21,0.00021973,2]
[424747054,1781121054000,-482.21,0.00021973,2]
[424747055,1781121054000,-644.04,0.00021973,2]
[424747060,1781121054000,-482.21,0.00021973,2]
[424747056,1781121054000,-396.12,0.00021973,2]
[424747061,1781121054000,-644.04,0.00021973,2]
[424747008,1781121054000,-396.12,0.00021151,2]
[424747041,1781121054000,-150.0,0.00021918,2]
[424747034,1781121054000,-241.49,0.000214,2]
[424747047,1781121054000,-396.12,0.0002197,2]
[424747038,1781121054000,-2405.55389863,0.00021678,2]
[424747017,1781121054000,-194.2,0.00021152,2]
[424747032,1781121054000,-307.26052505,0.0002129,2]
[424747011,1781121054000,-575.4,0.00021151,2]
[424747009,1781121054000,-575.42,0.00021151,2]
[424747010,1781121054000,-482.21,0.00021151,2]
[424747014,1781121054000,-482.21,0.00021151,2]
[424747012,1781121054000,-396.12,0.00021151,2]
[424747013,1781121054000,-575.4,0.00021151,2]
[424747016,1781121054000,-396.12,0.00021152,2]
[424747018,1781121054000,-575.4,0.00021152,2]
[424747020,1781121054000,-323.0,0.0002129,2]
[424747021,1781121054000,-287.0,0.0002129,2]
[424747015,1781121054000,-396.12,0.00021152,2]
[424747022,1781121054000,-998.0,0.0002129,2]
[424747033,1781121054000,-169.46065363,0.00021298,2]
[424747019,1781121054000,-321.0,0.0002129,2]
[424747029,1781121054000,-1028.0,0.0002129,2]
[424747030,1781121054000,-299.0,0.0002129,2]
[424747025,1781121054000,-223.0,0.0002129,2]
[424747026,1781121054000,-873.0,0.0002129,2]
[424747031,1781121054000,-532.68090141,0.0002129,2]
[424747027,1781121054000,-331.45963809,0.0002129,2]
[424747023,1781121054000,-1335.0,0.0002129,2]
[424747028,1781121054000,-268.0,0.0002129,2]
[424747024,1781121054000,-328.0,0.0002129,2]
[424747102,1781121055000,-2494.55939288,0.00022226,2]
[424747092,1781121055000,-151.0,0.00022,2]
[424747090,1781121055000,-302.35,0.00022,14]
[424747098,1781121055000,-3643.0,0.00022222,2]
[424747094,1781121055000,-1358.0,0.00022222,2]
[424747097,1781121055000,-933.0,0.00022222,2]
[424747096,1781121055000,-1274.0,0.00022222,2]
[424747100,1781121055000,-151.0,0.00022225,2]
[424747099,1781121055000,-599.60298507,0.00022225,2]
[424747104,1781121055000,-416.8,0.00022353,2]
[424747095,1781121055000,-382.0,0.00022222,2]
[424747103,1781121055000,-9343.12,0.00022325,120]
[424747112,1781121055000,-2586.85809042,0.00022774,2]
[424747105,1781121055000,-1543.41,0.00022466,2]
[424747107,1781121055000,-440.0,0.000225,7]
[424747115,1781121055000,-482.21,0.00022792,2]
[424747116,1781121055000,-482.22,0.00022792,2]
[424747106,1781121055000,-2186.52,0.00022466,2]
[424747108,1781121055000,-9343.12,0.00022571,120]
[424747110,1781121055000,-350.0,0.00022762,4]
[424747109,1781121055000,-1160.586699,0.000227,7]
[424747111,1781121055000,-217.15233878,0.00022774,2]
[424747114,1781121055000,-575.42,0.00022792,2]
[424747091,1781121055000,-450.0,0.00022,2]
[424747101,1781121055000,-209.40437684,0.00022226,2]
[424747093,1781121055000,-225.8,0.00022,2]
[424747063,1781121055000,-644.04,0.00021973,2]
[424747089,1781121055000,-166.45,0.00022,120]
[424747062,1781121055000,-482.22,0.00021973,2]
[424747067,1781121055000,-482.22,0.00021973,2]
[424747064,1781121055000,-482.21,0.00021973,2]
[424747066,1781121055000,-482.21,0.00021973,2]
[424747068,1781121055000,-575.4,0.00021973,2]
[424747065,1781121055000,-396.12,0.00021973,2]
[424747069,1781121055000,-396.12,0.00021973,2]
[424747071,1781121055000,-396.12,0.00021973,2]
[424747070,1781121055000,-644.04,0.00021973,2]
[424747072,1781121055000,-396.13,0.00021973,2]
[424747074,1781121055000,-482.9,0.00021973,2]
[424747076,1781121055000,-396.12,0.00021973,2]
[424747075,1781121055000,-482.21,0.00021973,2]
[424747077,1781121055000,-482.2,0.00021973,2]
[424747073,1781121055000,-396.12,0.00021973,2]
[424747078,1781121055000,-396.12,0.00021973,2]
[424747082,1781121055000,-482.21,0.00021973,2]
[424747080,1781121055000,-644.05,0.00021973,2]
[424747081,1781121055000,-482.22,0.00021973,2]
[424747079,1781121055000,-644.04,0.00021973,2]
[424747084,1781121055000,-151.0,0.00021999,2]
[424747083,1781121055000,-2040.1112553,0.00021999,10]
[424747086,1781121055000,-525.0,0.00022,2]
[424747085,1781121055000,-801.09108717,0.00022,10]
[424747087,1781121055000,-150.0,0.00022,2]
[424747088,1781121055000,-40000.0,0.00022,2]
[424747119,1781121055000,-575.4,0.00022792,2]
[424747113,1781121055000,-643.91,0.00022792,2]
[424747120,1781121055000,-575.4,0.00022792,2]
[424747152,1781121055000,-644.04,0.00022795,2]
[424747150,1781121055000,-482.22,0.00022795,2]
[424747148,1781121055000,-644.04,0.00022795,2]
[424747154,1781121055000,-9343.12,0.00022818,120]
[424747153,1781121055000,-185.08,0.00022795,2]
[424747156,1781121055000,-5000.0,0.00023,2]
[424747159,1781121055000,-150.0,0.00023014,2]
[424747155,1781121055000,-525.0,0.00023,2]
[424747157,1781121055000,-151.0,0.00023,2]
[424747161,1781121055000,-241.49,0.000231,7]
[424747158,1781121055000,-222.47177398,0.00023,3]
[424747160,1781121055000,-9343.12,0.00023064,120]
[424747162,1781121055000,-500.0,0.0002322,7]
[424747163,1781121055000,-150.0,0.00023288,2]
[424747164,1781121055000,-9343.12,0.00023311,120]
[424747166,1781121055000,-2682.57183977,0.00023322,2]
[424747168,1781121055000,-9343.12,0.00023558,120]
[424747167,1781121055000,-1170.68,0.00023363,7]
[424747171,1781121055000,-644.05,0.00023614,2]
[424747172,1781121055000,-396.12,0.00023614,2]
[424747169,1781121055000,-396.12,0.00023614,2]
[424747170,1781121055000,-482.21,0.00023614,2]
[424747165,1781121055000,-225.18697532,0.00023322,2]
[424747173,1781121055000,-396.12,0.00023614,2]
[424747117,1781121055000,-482.21,0.00022792,2]
[424747151,1781121055000,-482.21,0.00022795,2]
[424747149,1781121055000,-482.21,0.00022795,2]
[424747174,1781121055000,-575.4,0.00023615,2]
[424747147,1781121055000,-396.12,0.00022795,2]
[424747121,1781121055000,-575.4,0.00022792,2]
[424747125,1781121055000,-396.11,0.00022793,2]
[424747124,1781121055000,-575.42,0.00022793,2]
[424747126,1781121055000,-396.12,0.00022793,2]
[424747128,1781121055000,-644.04,0.00022795,2]
[424747129,1781121055000,-482.21,0.00022795,2]
[424747118,1781121055000,-482.21,0.00022792,2]
[424747145,1781121055000,-482.21,0.00022795,2]
[424747123,1781121055000,-482.21,0.00022792,2]
[424747127,1781121055000,-575.4,0.00022795,2]
[424747141,1781121055000,-644.04,0.00022795,2]
[424747131,1781121055000,-396.12,0.00022795,2]
[424747130,1781121055000,-482.21,0.00022795,2]
[424747122,1781121055000,-482.21,0.00022792,2]
[424747133,1781121055000,-482.22,0.00022795,2]
[424747142,1781121055000,-644.05,0.00022795,2]
[424747132,1781121055000,-644.04,0.00022795,2]
[424747144,1781121055000,-644.04,0.00022795,2]
[424747146,1781121055000,-396.12,0.00022795,2]
[424747138,1781121055000,-396.62,0.00022795,2]
[424747143,1781121055000,-482.21,0.00022795,2]
[424747136,1781121055000,-396.12,0.00022795,2]
[424747137,1781121055000,-482.22,0.00022795,2]
[424747135,1781121055000,-644.04,0.00022795,2]
[424747139,1781121055000,-396.12,0.00022795,2]
[424747134,1781121055000,-644.04,0.00022795,2]
[424747140,1781121055000,-644.04,0.00022795,2]
[424747209,1781121056000,-644.05,0.00024436,2]
[424747215,1781121056000,-482.21,0.00024439,2]
[424747210,1781121056000,-644.04,0.00024436,2]
[424747212,1781121056000,-482.21,0.00024437,2]
[424747207,1781121056000,-278.76739949,0.00024418,2]
[424747211,1781121056000,-644.04,0.00024436,2]
[424747208,1781121056000,-2884.75459676,0.00024418,2]
[424747205,1781121056000,-9343.12,0.00024298,120]
[424747206,1781121056000,-416.8,0.00024324,2]
[424747214,1781121056000,-644.04,0.00024439,2]
[424747213,1781121056000,-482.21,0.00024439,2]
[424747221,1781121056000,-51591.2949456,0.00024583,2]
[424747216,1781121056000,-644.04,0.00024439,2]
[424747218,1781121056000,-47879.6396712,0.00024583,2]
[424747220,1781121056000,-198237.0357055,0.00024583,2]
[424747228,1781121056000,-225.8,0.00024749,7]
[424747223,1781121056000,-156.63408699,0.00024657,120]
[424747225,1781121056000,-170.1,0.00024658,2]
[424747219,1781121056000,-957.7105583,0.00024583,2]
[424747226,1781121056000,-150.0,0.00024658,2]
[424747222,1781121056000,-1304.2883382,0.00024583,2]
[424747224,1781121056000,-1000.0,0.00024658,2]
[424747227,1781121056000,-241.49,0.000247,7]
[424747204,1781121056000,-150.0,0.00024164,2]
[424747217,1781121056000,-9343.12,0.00024544,120]
[424747203,1781121056000,-10130.8178401,0.00024087,2]
[424747195,1781121056000,-644.04,0.00023617,2]
[424747201,1781121056000,-9343.12,0.00024051,120]
[424747229,1781121056000,-9343.12,0.0002479,120]
[424747176,1781121056000,-482.21,0.00023615,2]
[424747178,1781121056000,-396.12,0.00023617,2]
[424747184,1781121056000,-644.05,0.00023617,2]
[424747175,1781121056000,-644.04,0.00023615,2]
[424747177,1781121056000,-396.12,0.00023615,2]
[424747183,1781121056000,-396.12,0.00023617,2]
[424747180,1781121056000,-482.21,0.00023617,2]
[424747181,1781121056000,-644.04,0.00023617,2]
[424747182,1781121056000,-644.04,0.00023617,2]
[424747185,1781121056000,-396.12,0.00023617,2]
[424747192,1781121056000,-396.12,0.00023617,2]
[424747187,1781121056000,-644.04,0.00023617,2]
[424747188,1781121056000,-396.12,0.00023617,2]
[424747190,1781121056000,-644.05,0.00023617,2]
[424747189,1781121056000,-644.04,0.00023617,2]
[424747194,1781121056000,-396.12,0.00023617,2]
[424747191,1781121056000,-644.04,0.00023617,2]
[424747193,1781121056000,-482.21,0.00023617,2]
[424747186,1781121056000,-644.04,0.00023617,2]
[424747196,1781121056000,-644.04,0.00023648,2]
[424747198,1781121056000,-233.5188934,0.0002387,2]
[424747197,1781121056000,-9343.12,0.00023805,120]
[424747200,1781121056000,-500.0,0.00024,2]
[424747199,1781121056000,-2781.82699784,0.0002387,2]
[424747202,1781121056000,-203.0,0.0002407,10]
[424747230,1781121056000,-621.78829552,0.00024964,2]
[424747179,1781121056000,-644.04,0.00023617,2]
[424747242,1781121056000,-284.95203121,0.00025,7]
[424747264,1781121056000,-159.0,0.00025985,2]
[424747265,1781121056000,-550.0,0.00026,2]
[424747261,1781121056000,-9343.12,0.0002553,120]
[424747263,1781121056000,-350.0,0.00025891,7]
[424747267,1781121056000,-150.0,0.00026028,2]
[424747270,1781121056000,-2000.0,0.00026288,2]
[424747268,1781121056000,-9343.12,0.00026271,120]
[424747274,1781121056000,-1164.202069,0.00026384,2]
[424747271,1781121056000,-701.0,0.00026288,2]
[424747269,1781121056000,-2000.0,0.00026288,2]
[424747275,1781121056000,-1164.202069,0.00026384,2]
[424747272,1781121056000,-416.8,0.00026296,2]
[424747276,1781121056000,-1164.202069,0.00026384,2]
[424747277,1781121056000,-1164.202069,0.00026384,2]
[424747279,1781121056000,-1164.202069,0.00026384,2]
[424747278,1781121056000,-1164.202069,0.00026384,2]
[424747281,1781121056000,-1164.202069,0.00026384,2]
[424747280,1781121056000,-1164.202069,0.00026384,2]
[424747283,1781121056000,-1164.202069,0.00026384,2]
[424747285,1781121056000,-1164.202069,0.00026384,2]
[424747284,1781121056000,-1164.202069,0.00026384,2]
[424747286,1781121056000,-1164.202069,0.00026384,2]
[424747282,1781121056000,-1164.202069,0.00026384,2]
[424747287,1781121056000,-1164.202069,0.00026384,2]
[424747232,1781121056000,-2991.49051684,0.00024966,2]
[424747262,1781121056000,-9343.12,0.00025778,120]
[424747258,1781121056000,-150.0,0.00025373,2]
[424747273,1781121056000,-1164.202069,0.00026384,2]
[424747259,1781121056000,-180.37572735,0.00025392,2]
[424747233,1781121056000,-323.0,0.00025,3]
[424747257,1781121056000,-151.0,0.000253,2]
[424747231,1781121056000,-151.0,0.00024964,2]
[424747234,1781121056000,-1000.0,0.00025,2]
[424747235,1781121056000,-13079.84406677,0.00025,10]
[424747241,1781121056000,-215.92376884,0.00025,7]
[424747237,1781121056000,-150.3,0.00025,7]
[424747236,1781121056000,-284.95203121,0.00025,10]
[424747238,1781121056000,-163.33638475,0.00025,15]
[424747239,1781121056000,-629.11802697,0.00025,5]
[424747244,1781121056000,-9343.12,0.00025038,120]
[424747250,1781121056000,-3643.0,0.00025222,2]
[424747251,1781121056000,-644.04,0.00025258,2]
[424747240,1781121056000,-215.92376884,0.00025,10]
[424747255,1781121056000,-9343.12,0.00025284,120]
[424747260,1781121056000,-500.0,0.00025412,7]
[424747249,1781121056000,-933.0,0.00025222,2]
[424747256,1781121056000,-151.0,0.000253,2]
[424747246,1781121056000,-1358.0,0.00025222,2]
[424747243,1781121056000,-350.0,0.00025015,6]
[424747245,1781121056000,-1170.68,0.00025044,7]
[424747266,1781121056000,-9343.12,0.00026025,120]
[424747254,1781121056000,-644.07,0.00025261,2]
[424747253,1781121056000,-644.04,0.00025261,2]
[424747247,1781121056000,-382.0,0.00025222,2]
[424747248,1781121056000,-1274.0,0.00025222,2]
[424747252,1781121056000,-644.59,0.00025261,2]
[424747328,1781121057000,-150.0,0.00027397,2]
[424747323,1781121057000,-150.0,0.00027397,2]
[424747322,1781121057000,-150.0,0.00027397,2]
[424747324,1781121057000,-150.0,0.00027397,2]
[424747321,1781121057000,-150.0,0.00027397,2]